bitfinex-derivatives/quotes_SOLF0:USTF0_20241025
["timestamp","ask_amount","ask_price","bid_price","bid_amount"]
[1729897134878,38.17001544,163.83,163.77,3.0577]
[1729897135370,38.17001544,163.83,163.72,10.84]
[1729897135573,38.17001544,163.83,163.77,3.0577]
[1729897135997,38.17001544,163.8,163.66,59.38]
[1729897136175,38.17001544,163.73,163.59,10.84]
[1729897136478,38.17001544,163.73,163.6,11.96404034]
[1729897136677,38.17001544,163.73,163.61,1.12404034]
[1729897136972,0.4814,163.79,163.63,38.17001544]
[1729897137177,0.4814,163.79,163.66,38.17001544]
[1729897137375,38.17001544,163.8,163.67,2.6402]
[1729897137578,38.17001544,163.8,163.76,3.0578]
[1729897137874,38.17001544,163.8,163.68,10.84]
[1729897138176,38.17001544,163.83,163.77,3.0576]
[1729897138377,38.17001544,163.8,163.74,10.84]
[1729897138580,38.17001544,163.78,163.74,10.84]
[1729897138875,38.17001544,163.78,163.75,3.0581]
[1729897139073,38.17001544,163.81,163.66,59.38]
[1729897139376,38.17001544,163.78,163.67,10.84]
[1729897139575,38.17001544,163.81,163.67,10.84]
[1729897139767,38.17001544,163.81,163.68,1.2617]
[1729897139972,38.17001544,163.78,163.57,59.4]
[1729897140273,38.17001544,163.75,163.6,38.17001544]
[1729897140467,38.17001544,163.75,163.64,3.0601]
[1729897140671,0.4841,163.77,163.63,38.17001544]
[1729897140873,38.17001544,163.81,163.66,38.17001544]
[1729897141074,38.17001544,163.81,163.67,12.0905]
[1729897141580,38.17001544,163.81,163.68,2.5399]
[1729897142173,38.17001544,163.75,163.64,10.84]
[1729897142475,38.17001544,163.78,163.65,1.3143]
[1729897142677,38.17001544,163.75,163.72,3.0585]
[1729897142981,38.17001544,163.75,163.65,1.3143]
[1729897143481,38.17001544,163.78,163.65,1.3143]
[1729897143673,38.17001544,163.81,163.78,3.0575]
[1729897143873,38.17001544,163.81,163.74,10.84]
[1729897144178,38.17001544,163.78,163.55,2.64514463]
[1729897144481,38.17001544,163.78,163.65,38.17001544]
[1729897144685,38.17001544,163.8,163.66,13.229983]
[1729897144984,38.17001544,163.8,163.67,39.29389844]
[1729897145172,38.17001544,163.8,163.68,1.123883]
[1729897145377,38.17001544,163.8,163.76,3.0578]
[1729897145803,38.17001544,163.8,163.75,10.84]
[1729897145977,0.4841,163.86,163.7,59.4]
[1729897145978,38.17001544,163.83,163.76,10.84]
[1729897146379,38.17001544,163.83,163.68,1.2209]
[1729897146579,38.17001544,163.8,163.69,10.84]
[1729897147383,38.17001544,163.77,163.69,10.84]
[1729897147581,38.17001544,163.8,163.69,10.84]
[1729897147787,38.17001544,163.83,163.7,1.2209]
[1729897147987,38.17001544,163.83,163.71,1.3381]
[1729897148185,38.17001544,163.83,163.71,39.50811544]
[1729897148383,38.17001544,163.8,163.76,3.0578]
[1729897148691,38.17001544,163.8,163.69,11.3]
[1729897149087,38.17001544,163.83,163.79,3.0574]
[1729897149682,38.17001544,163.83,163.8,3.0572]
[1729897149993,38.17001544,163.85,163.77,11.3]
[1729897150188,38.17001544,163.88,163.77,11.3]
[1729897150382,38.17001544,163.88,163.84,3.0563]
[1729897150886,38.65341544,163.93,163.85,11.3]
[1729897151095,3.0565,163.84,163.6,68.5827]
[1729897151393,38.17001544,163.82,163.68,1.2323]
[1729897151585,38.17001544,163.82,163.68,50.70231544]
[1729897152178,38.17001544,163.82,163.77,3.0576]
[1729897152387,38.17001544,163.82,163.78,11.3]
[1729897152593,38.17001544,163.84,163.78,14.3574]
[1729897152990,38.17001544,163.84,163.78,11.3]
[1729897153291,0.4834,163.88,163.78,11.3]
[1729897153485,38.17001544,163.86,163.78,11.3]
[1729897153887,38.17001544,163.88,163.78,11.3]
[1729897154288,38.17001544,163.88,163.79,1.2937]
[1729897154483,38.17001544,163.89,163.64,59.4]
[1729897154688,38.17001544,163.82,163.66,2.5414]
[1729897154986,38.17001544,163.82,163.66,40.71141544]
[1729897155185,3.057,163.82,163.66,40.71141544]
[1729897155386,38.17001544,163.86,163.78,3.0575]
[1729897155593,38.17001544,163.86,163.79,11.72]
[1729897156394,3.5397,163.87,163.79,11.72]
[1729897156395,38.17001544,163.83,163.79,11.72]
[1729897158087,38.17001544,163.83,163.79,14.7773]
[1729897158684,41.22681544,163.83,163.75,3.0581]
[1729897158888,38.17001544,163.83,163.75,3.0581]
[1729897159091,38.17001544,163.83,163.75,14.7781]
[1729897159288,3.0569,163.82,163.75,14.7781]
[1729897160290,3.0571,163.81,163.75,14.7781]
[1729897160495,38.17001544,163.83,163.75,14.7781]
[1729897160691,38.17001544,163.76,163.57,18.22]
[1729897160891,3.0582,163.75,163.62,1.2352]
[1729897161088,3.0582,163.75,163.63,1.1240822]
[1729897161284,38.17001544,163.76,163.63,1.1240822]
[1729897161490,3.0584,163.74,163.63,1.1240822]
[1729897161884,3.0584,163.74,163.67,3.0595]
[1729897162086,3.0584,163.74,163.68,11.72]
[1729897162391,3.0582,163.75,163.68,14.7794]
[1729897162594,38.17001544,163.76,163.68,11.72]
[1729897162894,0.4821,163.78,163.68,11.72]
[1729897163291,3.0579,163.77,163.72,3.0587]
[1729897163494,38.17001544,163.79,163.72,3.0587]
[1729897163698,38.17001544,163.79,163.69,1.3296]
[1729897163998,38.17001544,163.74,163.63,11.72]
[1729897164296,26.5473809,163.74,163.67,3.0595]
[1729897164492,26.5473809,163.74,163.65,1.2519]
[1729897165295,26.5472809,163.74,163.65,1.2519]
[1729897165895,26.5472809,163.74,163.64,1.3446]
[1729897165896,3.0589,163.71,163.55,2.64514463]
[1729897166092,3.0589,163.71,163.65,3.0599]
[1729897166619,3.0589,163.71,163.66,11.72]
[1729897167289,23.4889809,163.69,163.59,1.3154]
[1729897167499,23.4889809,163.69,163.6,11.72]
[1729897167994,3.0595,163.68,163.62,3.0604]
[1729897168194,23.4889809,163.69,163.6,11.72]
[1729897168397,23.4889809,163.64,163.6,11.72]
[1729897168600,26.5491809,163.64,163.6,11.72]
[1729897168799,23.4889809,163.64,163.6,11.72]
[1729897168997,23.4889809,163.64,163.5,23.4889809]
[1729897168998,23.4889809,163.61,163.32,233.65616502]
[1729897169196,0.4844,163.73,163.55,14.36514463]
[1729897169399,23.4889809,163.67,163.56,1.3083]
[1729897169694,3.0602,163.65,163.59,3.061]
[1729897170095,23.4889809,163.64,163.59,3.061]
[1729897170294,23.4889809,163.64,163.57,1.2524]
[1729897170600,23.4889809,163.64,163.56,1.3083]
[1729897170801,23.4889809,163.67,163.56,2.5607]
[1729897171498,3.0602,163.64,163.56,2.5607]
[1729897172096,23.4889809,163.69,163.56,2.5607]
[1729897172395,23.4889809,163.75,163.6,23.4889809]
[1729897172603,3.0581,163.76,163.7,3.059]
[1729897172793,0.4849,163.84,163.71,11.72]
[1729897172997,23.4889809,163.83,163.71,11.72]
[1729897173205,26.5466809,163.78,163.71,11.72]
[1729897173423,23.4889809,163.78,163.71,11.72]
[1729897174403,3.0578,163.77,163.71,11.72]
[1729897174602,38.19559589,163.78,163.71,14.7787]
[1729897174814,38.19559589,163.78,163.71,11.72]
[1729897175704,41.25269589,163.81,163.74,3.0582]
[1729897176006,38.19559589,163.81,163.74,3.0582]
[1729897176497,38.19559589,163.77,163.71,11.72]
[1729897176898,38.19559589,163.75,163.71,11.72]
[1729897177099,3.0586,163.73,163.71,11.72]
[1729897177297,38.19559589,163.8,163.61,59.44]
[1729897177298,38.19559589,163.72,163.61,59.44]
[1729897177499,38.19559589,163.8,163.62,11.72]
[1729897177500,38.19559589,163.69,163.62,11.72]
[1729897178601,38.19559589,163.69,163.63,3.0603]
[1729897179410,41.25489589,163.69,163.63,3.0603]
[1729897179616,38.19559589,163.69,163.64,11.72]
[1729897180504,3.0599,163.66,163.63,11.72]
[1729897180694,38.19559589,163.66,163.63,11.72]
[1729897181310,38.19559589,163.64,163.63,11.72]
[1729897181504,38.19559589,163.66,163.61,36.7248]
[1729897181808,38.19559589,163.66,163.62,11.3]
[1729897182106,3.06,163.65,163.62,11.3]
[1729897182505,38.19559589,163.66,163.62,11.3]
[1729897182706,41.25559589,163.66,163.62,11.3]
[1729897182905,38.19559589,163.66,163.62,11.3]
[1729897183410,38.19559589,163.69,163.62,11.3]
[1729897184309,38.19559589,163.72,163.62,11.3]
[1729897184508,38.19559589,163.72,163.67,3.0596]
[1729897184810,38.19559589,163.72,163.62,11.3]
[1729897185211,38.19559589,163.78,163.64,38.19559589]
[1729897186303,3.0572,163.8,163.74,3.0582]
[1729897186503,38.19559589,163.78,163.75,11.32]
[1729897186907,41.25319589,163.78,163.75,11.32]
[1729897187114,38.19559589,163.8,163.75,11.32]
[1729897187611,38.19559589,163.8,163.76,3.0578]
[1729897188311,38.19559589,163.8,163.75,14.3781]
[1729897188709,38.19559589,163.78,163.76,11.3]
[1729897189615,3.0578,163.77,163.76,11.3]
[1729897189924,3.0578,163.77,163.61,36.7248]
[1729897189925,38.19559589,163.78,163.7,11.3]
[1729897190216,38.19559589,163.8,163.7,11.3]
[1729897190217,41.25439589,163.72,163.7,11.3]
[1729897191008,38.19559589,163.72,163.7,11.3]
[1729897191218,38.19559589,163.72,163.71,10.86]
[1729897191818,41.25429589,163.72,163.71,10.86]
[1729897192417,3.0595,163.68,163.62,3.7967]
[1729897192722,38.19559589,163.68,163.63,10.86]
[1729897193110,41.25509589,163.68,163.63,13.9203]
[1729897193315,38.19559589,163.7,163.63,10.86]
[1729897193918,38.19559589,163.7,163.67,3.0595]
[1729897194119,38.19559589,163.7,163.63,10.86]
[1729897194424,38.19559589,163.73,163.68,3.0593]
[1729897194623,38.19559589,163.73,163.63,10.86]
[1729897195121,41.25369589,163.76,163.7,3.0589]
[1729897195319,38.19559589,163.76,163.71,10.86]
[1729897196118,3.0582,163.75,163.71,10.86]
[1729897196324,0.4822,163.84,163.71,10.86]
[1729897196620,38.19559589,163.8,163.71,10.86]
[1729897196811,0.4822,163.84,163.71,10.86]
[1729897197016,38.19559589,163.87,163.72,39.48389589]
[1729897197317,3.0567,163.83,163.73,1.2263]
[1729897197520,3.0567,163.83,163.74,59.44]
[1729897197721,3.0564,163.84,163.78,3.0574]
[1729897197924,3.0564,163.84,163.79,10.86]
[1729897199127,38.19559589,163.87,163.8,3.0571]
[1729897199423,38.19559589,163.87,163.79,10.86]
[1729897199623,3.0563,163.85,163.79,13.9172]
[1729897199825,38.19559589,163.87,163.79,10.86]
[1729897200924,38.19559589,163.87,163.74,59.44]
[1729897201121,38.19559589,163.87,163.75,10.46]
[1729897201520,3.0568,163.83,163.78,3.0574]
[1729897201721,38.19559589,163.84,163.74,59.44]
[1729897201916,38.19559589,163.82,163.74,59.44]
[1729897202122,38.19559589,163.82,163.75,10.46]
[1729897202520,3.0579,163.76,163.75,10.46]
[1729897202725,38.19559589,163.79,163.75,10.46]
[1729897203130,3.0579,163.77,163.75,10.46]
[1729897203327,3.0579,163.77,163.72,4.3469]
[1729897203533,3.0579,163.77,163.73,13.5185]
[1729897203722,38.19559589,163.79,163.73,10.46]
[1729897204124,3.058,163.76,163.73,10.46]
[1729897205230,3.0574,163.79,163.73,10.46]
[1729897205632,38.19559589,163.82,163.73,10.46]
[1729897205825,3.0573,163.8,163.74,3.0583]
[1729897206027,3.0573,163.8,163.73,10.46]
[1729897206234,38.19559589,163.87,163.73,10.46]
[1729897206439,3.0567,163.83,163.77,3.0577]
[1729897206635,38.19559589,163.87,163.73,10.46]
[1729897206833,38.19559589,163.89,163.78,38.19559589]
[1729897207132,8.02971163,164.02,163.79,2.6093]
[1729897207133,38.19559589,163.92,163.79,2.6093]
[1729897207535,38.19559589,163.92,163.8,59.42]
[1729897207749,38.19559589,163.92,163.84,3.0564]
[1729897208041,56.0968064,164.05,163.83,38.19559589]
[1729897208042,38.19559589,164.05,163.83,38.19559589]
[1729897208245,0.4792,164.01,163.83,38.19559589]
[1729897208439,38.19559589,163.95,163.81,11.7558]
[1729897208840,3.0553,163.91,163.81,11.7558]
[1729897209365,38.19559589,163.95,163.81,11.7558]
[1729897209542,3.0549,163.93,163.86,3.0559]
[1729897209847,38.19559589,163.97,163.83,38.19559589]
[1729897210035,3.0544,163.95,163.83,38.19559589]
[1729897210240,38.19559589,163.97,163.85,38.19559589]
[1729897210643,3.0542,163.96,163.85,38.19559589]
[1729897211043,3.0542,163.96,163.89,3.0553]
[1729897211246,38.19559589,163.97,163.9,10.06]
[1729897211945,38.19559589,164.0,163.9,10.06]
[1729897212152,38.19559589,164.03,163.91,2.6122]
[1729897212539,3.0537,163.99,163.93,3.0546]
[1729897212750,38.19559589,164.03,163.91,2.6122]
[1729897212959,10.06,164.09,163.88,10.06]
[1729897213155,38.19559589,163.96,163.89,10.06]
[1729897213348,38.19559589,164.09,163.95,38.19559589]
[1729897213739,3.0523,164.07,164.0,3.0534]
[1729897213945,38.19559589,164.11,164.01,1.2591]
[1729897214146,38.19559589,164.11,164.02,1.3286]
[1729897214355,3.0519,164.09,164.03,10.06]
[1729897214651,38.19559589,164.11,164.03,10.06]
[1729897215051,38.19559589,164.09,164.02,1.3286]
[1729897215249,0.4792,164.16,164.03,48.25559589]
[1729897215449,38.67479589,164.16,164.03,48.25559589]
[1729897215755,38.19559589,164.13,164.03,10.06]
[1729897215955,38.19559589,164.11,164.01,1.2591]
[1729897216151,3.0525,164.05,164.04,10.06]
[1729897216855,3.0525,164.06,164.04,10.06]
[1729897217443,38.19559589,164.11,164.04,10.06]
[1729897217646,3.0521,164.08,164.04,10.06]
[1729897218461,1.291,164.12,164.04,10.06]
[1729897218646,3.0518,164.09,164.04,10.06]
[1729897218852,1.291,164.12,164.04,10.06]
[1729897219956,3.0519,164.09,164.04,13.1127]
[1729897220454,1.291,164.12,164.04,10.06]
[1729897220851,23.44002944,164.07,164.0,10.06]
[1729897221050,23.44002944,164.07,163.98,69.44]
[1729897221051,3.0536,163.99,163.98,69.44]
[1729897221247,3.0536,163.99,163.98,8.0286]
[1729897221449,3.0536,163.99,163.98,4.0406]
[1729897222055,0.4748,164.06,163.98,4.0406]
[1729897222262,38.59677881,164.06,163.98,4.0406]
[1729897222455,3.0535,164.0,163.98,4.0406]
[1729897222869,38.59677881,164.06,163.98,4.0406]
[1729897223158,3.053,164.03,163.98,7.0944]
[1729897223391,3.053,164.03,163.98,4.0406]
[1729897223958,38.12197881,164.08,163.99,3.0536]
[1729897223959,3.0527,164.04,163.99,3.0536]
[1729897224152,38.59767881,164.11,163.98,4.0406]
[1729897224754,3.0525,164.06,163.98,4.0406]
[1729897224950,38.12197881,164.11,163.98,4.0406]
[1729897225463,3.0523,164.07,164.01,3.0532]
[1729897225764,38.12197881,164.11,163.98,4.0406]
[1729897226565,38.12197881,164.14,164.0,38.12197881]
[1729897226861,38.12197881,164.16,164.01,1.3504]
[1729897227158,38.12197881,164.16,164.02,97.46197881]
[1729897227359,0.4757,164.23,164.02,59.34]
[1729897227360,3.0525,164.06,164.02,59.34]
[1729897227660,6.0993,164.21,164.03,9.66]
[1729897227859,38.12197881,164.19,164.05,38.12197881]
[1729897228060,38.12197881,164.22,164.08,38.12197881]
[1729897228558,38.12197881,164.22,164.11,3.0513]
[1729897228756,38.12197881,164.22,164.12,9.66]
[1729897228956,3.05,164.19,164.14,3.0508]
[1729897229154,38.12197881,164.26,164.12,9.66]
[1729897229353,38.12197881,164.24,164.13,2.5608]
[1729897229865,38.12197881,164.26,164.13,2.5608]
[1729897230357,38.12197881,164.26,164.15,3.0506]
[1729897230556,38.12197881,164.26,164.13,2.5608]
[1729897230957,3.05,164.19,164.14,3.0508]
[1729897231560,38.12197881,164.2,164.15,9.66]
[1729897232168,38.12197881,164.23,164.15,9.66]
[1729897232663,38.12197881,164.2,164.13,1.2621]
[1729897232967,38.12197881,164.2,164.14,9.66]
[1729897233360,3.0507,164.15,164.14,9.66]
[1729897234067,38.12197881,164.2,164.14,9.66]
[1729897234294,3.0505,164.17,164.14,9.66]
[1729897234759,3.0503,164.18,164.14,9.66]
[1729897235268,38.12197881,164.26,164.14,9.66]
[1729897235473,3.0496,164.21,164.15,60.6276]
[1729897235767,3.0496,164.21,164.16,1.3161]
[1729897236773,6.0942,164.35,164.16,1.3161]
[1729897236774,6.0942,164.35,164.17,38.12197881]
[1729897236962,0.4735,164.34,164.18,1.309]
[1729897237170,3.0484,164.28,164.22,3.0492]
[1729897237507,0.4735,164.34,164.23,9.66]
[1729897237868,1.2844,164.32,164.23,9.66]
[1729897238973,38.12197881,164.41,164.24,9.26]
[1729897238974,38.12197881,164.35,164.24,9.26]
[1729897239165,38.12197881,164.35,164.25,9.26]
[1729897239663,2.5848,164.4,164.18,1.309]
[1729897239664,38.12197881,164.32,164.18,1.309]
[1729897239858,38.12197881,164.26,164.18,1.309]
[1729897240064,38.12197881,164.32,164.18,1.309]
[1729897240065,38.12197881,164.24,164.19,9.26]
[1729897240264,3.0497,164.2,164.19,9.26]
[1729897241069,38.12197881,164.39,164.25,38.12197881]
[1729897241268,1.3355,164.38,164.26,9.26]
[1729897241467,38.12197881,164.31,164.18,1.309]
[1729897241665,38.12197881,164.31,164.19,9.26]
[1729897241871,1.2736,164.3,164.19,9.26]
[1729897242073,3.0487,164.26,164.19,9.26]
[1729897242374,1.2736,164.3,164.19,9.26]
[1729897242375,1.3355,164.29,164.19,9.26]
[1729897242675,3.0488,164.26,164.19,9.26]
[1729897242869,1.3355,164.29,164.19,9.26]
[1729897243264,3.0488,164.25,164.19,9.26]
[1729897243669,3.0486,164.27,164.19,9.26]
[1729897243874,38.12197881,164.26,164.15,9.26]
[1729897244404,3.0497,164.21,164.15,9.26]
[1729897245378,3.0494,164.22,164.15,9.26]
[1729897245779,3.0494,164.22,164.14,62.3307]
[1729897245981,1.3355,164.29,164.16,38.12197881]
[1729897246480,1.3355,164.29,164.19,3.0497]
[1729897246775,1.3355,164.29,164.19,41.17167881]
[1729897246973,1.3355,164.29,164.21,38.12197881]
[1729897247167,1.3355,164.29,164.22,9.26]
[1729897247369,1.3355,164.29,164.23,3.0491]
[1729897247572,3.0479,164.3,164.23,3.0491]
[1729897247880,38.12197881,164.36,164.23,1.2891]
[1729897248096,3.0476,164.32,164.23,1.2891]
[1729897248278,38.12197881,164.36,164.23,1.2891]
[1729897248773,38.12197881,164.36,164.24,3.0489]
[1729897248978,38.12197881,164.34,164.23,1.2891]
[1729897249177,3.0486,164.27,164.23,9.26]
[1729897249381,38.12197881,164.34,164.23,9.26]
[1729897249783,3.0485,164.27,164.23,9.26]
[1729897251180,38.12197881,164.28,164.17,9.26]
[1729897251493,38.12197881,164.25,164.17,9.26]
[1729897251692,38.12197881,164.19,164.04,59.26]
[1729897251880,38.12197881,164.16,164.05,13.02436479]
[1729897252076,38.12197881,164.14,164.05,2.6431]
[1729897252281,38.12197881,164.14,164.06,9.26]
[1729897253890,38.12197881,164.17,164.06,9.26]
[1729897254090,3.0509,164.14,164.07,3.0521]
[1729897254389,38.12197881,164.12,164.0,9.26]
[1729897254589,3.0524,164.06,164.0,12.3133]
[1729897254775,38.12197881,164.12,164.0,9.26]
[1729897255208,3.0521,164.08,164.02,3.0529]
[1729897255385,38.12197881,164.12,164.0,9.26]
[1729897255786,3.0513,164.12,164.01,38.12197881]
[1729897255989,2.6284,164.18,164.07,38.12197881]
[1729897256178,2.6284,164.18,164.08,10.5722]
[1729897256378,2.6284,164.18,164.12,3.0512]
[1729897256582,2.6284,164.18,164.08,10.5722]
[1729897258083,4.3529,164.18,164.13,3.051]
[1729897258398,38.12197881,164.16,164.02,9.26]
[1729897258686,3.0516,164.11,164.05,3.0524]
[1729897258894,38.12197881,164.07,163.9,9.26]
[1729897259195,38.12197881,164.01,163.92,2.5511]
[1729897259382,38.12197881,164.04,163.96,3.0542]
[1729897259784,38.12197881,164.04,163.92,2.5511]
[1729897259986,3.0532,164.02,163.95,3.0543]
[1729897260288,38.12197881,164.04,163.92,2.5511]
[1729897260513,9.28,164.13,163.84,38.12197881]
[1729897260514,38.12197881,164.0,163.84,38.12197881]
[1729897260694,38.12197881,164.0,163.75,44.23817881]
[1729897260695,38.12197881,163.95,163.82,38.12197881]
[1729897260993,3.0546,163.94,163.82,38.12197881]
[1729897261295,38.12197881,163.95,163.83,9.28]
[1729897261594,38.12197881,163.98,163.84,38.12197881]
[1729897261806,9.28,164.05,163.83,9.28]
[1729897261807,38.12197881,163.95,163.83,9.28]
[1729897262089,3.0553,163.91,163.85,3.0562]
[1729897262293,3.0553,163.91,163.83,9.28]
[1729897262497,38.12197881,163.92,163.83,9.28]
[1729897262787,38.12197881,163.92,163.83,12.3365]
[1729897262992,38.12197881,163.95,163.83,9.28]
[1729897263296,3.0549,163.93,163.85,3.0561]
[1729897263499,3.0549,163.93,163.83,9.28]
[1729897263689,38.12197881,163.95,163.83,9.28]
[1729897264089,38.12197881,163.98,163.83,9.28]
[1729897264490,38.12197881,163.95,163.76,3.9355]
[1729897264696,38.12197881,163.95,163.85,3.0561]
[1729897264990,38.12197881,164.0,163.85,3.0561]
[1729897264991,38.12197881,163.92,163.85,9.28]
[1729897265192,3.0553,163.9,163.85,9.28]
[1729897265396,38.12197881,163.92,163.76,3.9355]
[1729897265595,38.12197881,163.9,163.77,9.28]
[1729897266194,3.0556,163.89,163.82,3.0567]
[1729897266498,3.0568,163.83,163.76,3.9355]
[1729897266795,38.12197881,163.81,163.67,9.28]
[1729897266989,38.12197881,163.79,163.67,12.3395]
[1729897267190,38.12197881,163.79,163.67,9.28]
[1729897267998,41.17957881,163.79,163.71,3.0587]
[1729897268194,38.12197881,163.79,163.71,3.0587]
[1729897268499,3.0576,163.78,163.7,3.059]
[1729897268997,3.057,163.81,163.73,3.0583]
[1729897269200,3.057,163.81,163.74,9.3]
[1729897269397,38.12197881,163.84,163.74,9.3]
[1729897269602,3.057,163.81,163.74,9.3]
[1729897269801,38.12197881,163.75,163.61,1.2193]
[1729897270100,38.12197881,163.73,163.62,9.3]
[1729897270289,38.12197881,163.7,163.32,12.32281596]
[1729897270491,38.12197881,163.7,163.58,9.3]
[1729897270695,3.0596,163.67,163.58,9.3]
[1729897270901,38.12197881,163.73,163.58,9.3]
[1729897271094,38.12197881,163.78,163.63,38.12197881]
[1729897271303,38.12197881,163.75,163.65,3.0599]
[1729897271609,38.12197881,163.75,163.66,9.3]
[1729897271918,3.0589,163.71,163.66,9.3]
[1729897272098,38.12197881,163.75,163.66,9.3]
[1729897272304,38.12197881,163.73,163.66,9.3]
[1729897272993,38.12197881,163.73,163.57,59.32]
[1729897273300,38.12197881,163.7,163.58,9.3]
[1729897273607,38.12197881,163.67,163.54,38.12197881]
[1729897273906,38.12197881,163.62,163.48,38.12197881]
[1729897274093,38.12197881,163.62,163.43,1.3156]
[1729897274094,38.12197881,163.68,163.56,9.3]
[1729897274404,38.12197881,163.65,163.56,9.3]
[1729897274703,38.12197881,163.65,163.55,11.94514463]
[1729897275203,38.12197881,163.63,163.55,2.64514463]
[1729897276309,38.12197881,163.57,163.55,0.61124463]
[1729897276608,38.12197881,163.59,163.55,0.61124463]
[1729897276798,38.12197881,163.62,163.55,0.61124463]
[1729897277194,41.18317881,163.59,163.55,0.61124463]
[1729897278013,3.0615,163.57,163.55,0.61124463]
[1729897278303,38.12197881,163.62,163.55,0.61124463]
[1729897278512,38.12197881,163.62,163.58,3.0613]
[1729897278698,38.12197881,163.65,163.55,0.61124463]
[1729897279098,38.12197881,163.65,163.6,3.0608]
[1729897279505,38.12197881,163.67,163.57,9.3]
[1729897280013,38.12197881,163.67,163.55,0.61124463]
[1729897280014,38.12197881,163.64,163.55,0.61124463]
[1729897280200,3.061,163.6,163.55,0.61124463]
[1729897280405,38.12197881,163.61,163.55,0.61124463]
[1729897281303,41.18277881,163.61,163.55,0.61124463]
[1729897282111,3.0617,163.56,163.55,0.61124463]
[1729897283310,38.12197881,163.6,163.55,0.61124463]
[1729897284206,38.12197881,163.56,163.55,0.61124463]
[1729897284401,38.12197881,163.56,163.38,1.2415]
[1729897284609,38.12197881,163.52,163.39,38.12197881]
[1729897284803,38.12197881,163.52,163.4,9.32]
[1729897285201,38.12197881,163.49,163.4,9.32]
[1729897285608,38.12197881,163.49,163.46,3.0635]
[1729897285916,38.12197881,163.52,163.4,9.32]
[1729897286205,38.12197881,163.55,163.49,3.0629]
[1729897286407,38.12197881,163.55,163.48,9.32]
[1729897286612,38.12197881,163.55,163.49,12.3828]
[1729897287110,38.12197881,163.55,163.49,9.32]
[1729897287314,41.18437881,163.52,163.38,1.3477]
[1729897287611,41.18437881,163.52,163.39,9.32]
[1729897287612,38.12197881,163.52,163.39,9.32]
[1729897287804,38.12197881,163.52,163.48,3.063]
[1729897288406,38.12197881,163.52,163.46,9.32]
[1729897289106,38.12197881,163.52,163.48,3.0631]
[1729897289302,38.12197881,163.52,163.46,9.32]
[1729897290008,38.12197881,163.55,163.48,3.063]
[1729897290208,38.12197881,163.55,163.47,3.8475]
[1729897290413,38.12197881,163.52,163.37,68.69984188]
[1729897290710,38.12197881,163.52,163.38,51.28947881]
[1729897290912,38.12197881,163.52,163.38,13.1675]
[1729897291712,38.12197881,163.55,163.41,38.12197881]
[1729897292507,38.12197881,163.58,163.44,38.12197881]
[1729897292922,38.12197881,163.61,163.46,38.12197881]
[1729897293109,38.12197881,163.61,163.47,13.1771]
[1729897293608,1.2685,163.66,163.47,13.1771]
[1729897293609,38.12197881,163.63,163.49,38.12197881]
[1729897293912,38.12197881,163.63,163.57,3.0614]
[1729897294209,3.0613,163.58,163.56,9.32]
[1729897294404,38.12197881,163.58,163.52,9.32]
[1729897294608,38.12197881,163.55,163.45,9.32]
[1729897294810,41.18397881,163.55,163.48,3.063]
[1729897295010,41.18397881,163.55,163.46,1.2258]
[1729897295011,38.12197881,163.55,163.46,1.2258]
[1729897295414,3.0622,163.54,163.47,3.0632]
[1729897295717,38.12197881,163.55,163.46,1.2258]
[1729897296620,38.12197881,163.49,163.29,6.1335]
[1729897296813,38.12197881,163.49,163.38,13.0127]
[1729897297315,38.12197881,163.49,163.43,3.064]
[1729897297518,38.12197881,163.49,163.43,9.22]
[1729897298009,38.12197881,163.49,163.37,71.99654188]
[1729897298219,38.12197881,163.49,163.37,110.11852069]
[1729897298411,1.2275,163.54,163.37,110.11852069]
[1729897298412,38.12197881,163.52,163.39,38.12197881]